Cogmind - Beta 11.1 @@@ ROGUE MODE // 2022.05.16 @ 22:43:36 Player: OctarineSorcerer Result: Destroyed by P-60 Hacker with Shock Rifle Performance ------------- Evolutions (3) 1500 Regions Visited (5) 1000 Robots Destroyed (36) 180 Value Destroyed (821) 821 Prototype IDs (4) 80 Alien Tech Used (0) 0 Bonus (-25) -25 TOTAL SCORE: 3556 Bonus ------- High Alert Combat Kills 56 Friendly Fire -81 Cogmind --------- Core Integrity 0/700 Matter 251/300 Energy 100/100 System Corruption 10% Temperature Cool (0) Movement Core (50) Location -7/Factory Parts ------- > --- POWER (2) -------- (None) > --- PROPULSION (4) --- (None) > --- UTILITY (5) ------ (None) > --- WEAPON (2) ------- (None) > --- INVENTORY (5) ---- Remote Datajack Peak State ------------ > --- POWER ------------ Light Nuclear Core Light Angular Momentum Engine > --- PROPULSION ------- Medium Treads Medium Treads Medium Treads Medium Treads > --- UTILITY ---------- Small Storage Unit Compact Battery Weight Redist. System Advanced ECM Suite Reactive Plating > --- WEAPON ----------- Advanced Beam Rifle High-powered Field Laser > --- INVENTORY -------- Nuclear Core Weight Redist. System High-powered Field Laser Remote Datajack [Rating: 47] Favorites ----------- Power Light Nuclear Core Engine Light Angular Momentum Engine Power Core Light Nuclear Core Propulsion Medium Treads Treads Medium Treads Leg Aluminum Leg Wheel Wheel Flight Unit Improved VTOL Module Utility Small Storage Unit Device Advanced ECM Suite Storage Small Storage Unit Hackware System Shield Protection Reactive Plating Weapon EM Pulse Gun Energy Gun EM Pulse Gun Launcher Missile Launcher Special Weapon Remote Datajack Impact Weapon Heavy Hammer Build | -11 -10 -10 -9 -8 -7 ------- Run | Scr Mat Min Mat Mat Fac Slots Evolved 6 | . . . 2 2 2 Power 1 | . . . . . 1 Propulsion 2 | . . . 2 . . Utility 3 | . . . . 2 1 Weapon . | . . . . . . Parts Attached 51 | 6 1 2 7 6 29 Power 8 | 1 . . 2 1 4 Engine 4 | 1 . . 1 1 1 Core 4 | . . . 1 . 3 Reactor . | . . . . . . Propulsion 13 | 2 . . 2 2 7 Treads 4 | . . . . . 4 Leg 5 | 2 . . 2 1 . Wheel 1 | . . . . . 1 Hover . | . . . . . . Flight 3 | . . . . 1 2 Utility 13 | 1 1 1 2 . 8 Device 7 | . 1 . 1 . 5 Storage 3 | 1 . . . . 2 Processor . | . . . . . . Hackware 1 | . . . 1 . . Protection 2 | . . 1 . . 1 Artifact . | . . . . . . Weapon 17 | 2 . 1 1 3 10 Energy Gun 10 | 2 . . . 3 5 Energy Cannon . | . . . . . . Ballistic Gun . | . . . . . . Ballistic Cannon . | . . . . . . Launcher 3 | . . 1 1 . 1 Special Weapon 3 | . . . . . 3 Impact Weapon 1 | . . . . . 1 Slashing Weapon . | . . . . . . Piercing Weapon . | . . . . . . Special Melee Weapon . | . . . . . . Unidentified Prototypes 4 | . . . . 3 1 Parts Lost 36 | . . 2 8 5 21 Power 8 | . . . 3 1 4 Propulsion 10 | . . . 3 2 5 Utility 8 | . . . . 1 7 Weapon 10 | . . 2 2 1 5 Highest Loss Streak 11 | . . 2 4 4 11 To Critical Strikes . | . . . . . . Average Slot Usage (%) 76 | . 92 96 71 26 77 Engine 6 | . 14 14 4 . 4 Core 3 | . . . 3 . 5 Treads 11 | . . . . . 20 Leg 9 | . 28 28 25 . . Flight 1 | . . . . 6 1 Device 12 | . 7 11 2 9 15 Storage 10 | . 14 14 11 5 10 Protection 2 | . . 2 6 . 2 Energy Gun 11 | . 28 22 . 4 10 Launcher 2 | . . 2 16 . . Special Weapon 1 | . . . . . 2 Naked Turns 6 | . . . . . 6 Heaviest Build 43 | 14 15 24 28 7 43 Greatest Support 121 | 20 20 20 40 10 121 Greatest Overweight (x) 4 | . . 4 1 2 3 Average Overweight (x) . | . . . . . . Largest Inventory Capacity 8 | 8 8 8 8 8 8 Average Capacity 7 | 6 8 8 8 6 7 Most Carried 8 | 1 1 8 8 8 6 Average Carried 3 | . 1 3 5 5 3 Final Capacity 8 | 8 8 8 8 5 5 Final Carried 8 | 1 1 8 5 3 1 Class Distribution -------------------- 96% | Mutant 3% | Sprinter Dominant Class ---------------- Mutant | -10/Materials Mutant | -10/Mines Mutant | -9/Materials Mutant | -8/Materials Mutant | -7/Factory Resources | -11 -10 -10 -9 -8 -7 ----------- Run | Scr Mat Min Mat Mat Fac Matter Collected 954 | 169 . 143 27 62 553 Remotely . | . . . . . . Salvage Created 913 | . 23 242 116 62 470 Parts 62 | . 1 10 19 5 27 Haulers Intercepted 2 | . . . . . 2 Recyclers Shooed 1 | . . . 1 . . Parts Field Recycled . | . . . . . . Retrieved Matter . | . . . . . . Parts Self-Destructed . | . . . . . . Prevented . | . . . . . . Kills | -11 -10 -10 -9 -8 -7 ------- Run | Scr Mat Min Mat Mat Fac Combat Hostiles Destroyed 23 | . . 4 12 1 6 Guns 5 | . . . . 1 4 AOE 18 | . . 4 12 . 2 Classes Destroyed 9 | . 1 3 2 . 3 Worker 6 | . . 2 2 1 1 Tunneler 1 | . . . . . 1 Hauler 2 | . . . . . 2 Recycler 3 | . . 1 . . 2 Watcher 1 | . 1 . . . . Swarmer 10 | . . . 10 . . Grunt 9 | . . 4 . 1 4 Sentry 2 | . . . 2 . . Programmer 2 | . . . . . 2 Best Kill Streak 7 | . 1 7 4 2 3 Combat Bots Only 4 | . . 4 4 1 2 Max Kills in Single Turn 3 | . 1 3 3 1 3 Gunslinging . | . . . . . . Exploded 3 | . . 2 3 . 1 Melee . | . . . . . . Uniques/NPCs Destroyed . | . . . . . . Combat | -11 -10 -10 -9 -8 -7 -------- Run | Scr Mat Min Mat Mat Fac Damage Taken 4637 | . . 547 649 654 2787 Core 1187 | . . 134 67 275 711 Absorbed by Shields . | . . . . . . Core Remaining (%) 69 | 100 . 46 83 50 . Volleys Fired 72 | . 2 8 14 6 42 Largest 2 | . 2 2 2 1 2 Hottest 140 | . 80 80 69 63 140 Shots Fired 99 | . 4 12 22 6 55 Gun 65 | . 4 8 . 6 47 Cannon . | . . . . . . Launcher 28 | . . 4 22 . 2 Special 6 | . . . . . 6 Kinetic . | . . . . . . Thermal 53 | . . . . 6 47 Explosive 28 | . . 4 22 . 2 Electromagnetic 12 | . 4 8 . . . Robot Hit Streak 7 | . 2 7 2 3 7 Robot Miss Streak 5 | . 2 2 4 1 5 Penetration Max . | . . . . . . Secondary Targets 1 | . . . . . 1 Max Gunslinging Chain 1 | . . . . . 1 Shots Hit Robots 59 | . 2 8 6 5 38 Core Hits 54 | . 1 12 20 2 19 Critical Kills 1 | . . . . . 1 Critical Parts Destroyed 1 | . . . . . 1 Critical Strikes 7 | . . . . . 7 Burn 5 | . . . . . 5 Smash 2 | . . . . . 2 Melee Attacks 4 | . . . . . 4 Impact 4 | . . . . . 4 Slashing . | . . . . . . Piercing . | . . . . . . Sneak Attacks 1 | . . . . . 1 Combat Hostiles . | . . . . . . Follow-up Attacks . | . . . . . . Damage Inflicted 2985 | . 44 558 996 92 1295 Guns 935 | . 44 81 . 80 730 Cannons . | . . . . . . Explosions 1845 | . . 477 996 . 372 Melee 193 | . . . . . 193 Ramming 12 | . . . . 12 . Kinetic . | . . . . . . Thermal 911 | . . 101 . 80 730 Explosive 1744 | . . 376 996 . 372 Electromagnetic 125 | . 44 81 . . . Impact 193 | . . . . . 193 Slashing . | . . . . . . Piercing . | . . . . . . Highest Corruption 10 | . . . . . 10 Average Corruption 5 | . . . . . 5 Corruption Purged . | . . . . . . Corruption Blocked . | . . . . . . Effects 28 | . . . . . 28 Message Errors 5 | . . . . . 5 Matter Fused 10 | . . . . . 10 Heat Flow Errors 1 | . . . . . 1 Energy Discharges 2 | . . . . . 2 Data Loss (minor) 5 | . . . . . 5 Data Loss (major) 1 | . . . . . 1 Misfires 2 | . . . . . 2 Alerts 1 | . . . . . 1 Weapon Failures 1 | . . . . . 1 Overload Shots . | . . . . . . Overflow Damage 57 | . . . 33 . 24 Projectiles . | . . . . . . Explosions 33 | . . . 33 . . Melee 24 | . . . . . 24 Knockbacks . | . . . . . . Impact . | . . . . . . Kinetic . | . . . . . . Secondary . | . . . . . . Self-Inflicted Damage 377 | . . 95 192 5 85 Shots 11 | . . 3 5 . 3 Rammed 2 | . . . . 2 . Targets Rammed 2 | . . . . 2 . Kicked . | . . . . . . Crushed . | . . . . . . Highest Temperature 454 | . 36 198 57 135 454 Average Temperature 105 | . 20 125 28 73 120 Received Heat Transfer 1941 | . . 285 144 378 1134 Effects 3 | . . . . . 3 Shutdowns 2 | . . . . . 2 Matter Decay 1 | . . . . . 1 Siege Activations . | . . . . . . Robots Corrupted . | . . . . . . Combat Hostiles . | . . . . . . Parts Fried . | . . . . . . Impact Corruptions 1 | . . . . . 1 Robots Melted . | . . . . . . Combat Hostiles . | . . . . . . Parts Melted 4 | . . . . . 4 Heat Transferred 1839 | . . 100 . 185 1554 Parts Sabotaged . | . . . . . . Parts Stolen . | . . . . . . Parts Stripped . | . . . . . . Power Chain Reactions 1 | . . 1 . . . Missiles Intercepted . | . . . . . . Alert | -11 -10 -10 -9 -8 -7 ------- Run | Scr Mat Min Mat Mat Fac Peak Influence 842 | . 22 217 842 437 404 Initial 342 | . . 8 6 342 198 Average 207 | . 4 23 434 385 218 Maximum Alert Level 3 | . . 1 3 2 2 Low Security (%) 46 | 100 100 95 29 . 35 Level 1 32 | . . 4 14 51 46 Level 2 18 | . . . 38 48 17 Level 3 1 | . . . 16 . . Level 4 . | . . . . . . Level 5 . | . . . . . . High Security . | . . . . . . Max Security . | . . . . . . Squads Dispatched 7 | . . 1 1 1 4 Investigation 1 | . . 1 . . . Extermination 2 | . . . . . 2 Reinforcement 4 | . . . 1 1 2 Assault . | . . . . . . Garrison . | . . . . . . Intercept . | . . . . . . Searches Triggered . | . . . . . . Construction Impeded . | . . . . . . Haulers Reinforced . | . . . . . . Active Scanning Responses . | . . . . . . Cargo Convoy Interrupts . | . . . . . . Stealth | -11 -10 -10 -9 -8 -7 --------- Run | Scr Mat Min Mat Mat Fac Distress Signals 2 | . . . 2 . . Communications Jammed . | . . . . . . Distress Signals . | . . . . . . Times Spotted 63 | . 1 4 22 11 25 Peak Tracking Total 6 | . 1 4 6 4 5 Tactical Retreats 8 | . . . 1 2 5 Traps | -11 -10 -10 -9 -8 -7 ------- Run | Scr Mat Min Mat Mat Fac Traps Triggered 5 | . . . . . 5 Indirectly . | . . . . . . Trap Hack Attempts . | . . . . . . Triggered . | . . . . . . Disarmed . | . . . . . . Reprogrammed . | . . . . . . Reused . | . . . . . . Traps Extracted . | . . . . . . Installed . | . . . . . . Triggered . | . . . . . . Machines | -11 -10 -10 -9 -8 -7 ---------- Run | Scr Mat Min Mat Mat Fac Machines Disabled 6 | . . . 5 . 1 Max in Single Turn 2 | . . . 2 . 1 Machines Sabotaged . | . . . . . . Garrisons Compromised . | . . . . . . Overloaded Fab Kills . | . . . . . . Hacking | -11 -10 -10 -9 -8 -7 --------- Run | Scr Mat Min Mat Mat Fac Machines Accessed 6 | . . 1 2 1 2 Terminals 2 | . . . 1 . 1 Fabricators . | . . . . . . Repair Stations . | . . . . . . Recycling Units 1 | . . . . 1 . Scanalyzers 1 | . . . 1 . . Garrison Access 1 | . . . . . 1 Total Hacks 16 | . . 1 12 1 2 Successful 11 | . . 1 8 1 1 Failed 5 | . . . 4 . 1 Catastrophic . | . . . . . . Database Lockouts . | . . . . . . Manual 3 | . . . 3 . . Terminals 6 | . . . 5 . 1 Fabricators . | . . . . . . Repair Stations . | . . . . . . Recycling Units 1 | . . . . 1 . Scanalyzers 7 | . . . 7 . . Garrison Access 1 | . . . . . 1 Terminal Hacks 3 | . . 1 2 . . Record 1 | . . . 1 . . Open Door 1 | . . 1 . . . Hauler Manifests 1 | . . . 1 . . Fabricator Hacks . | . . . . . . Repair Station Hacks . | . . . . . . Recycling Unit Hacks 1 | . . . . 1 . Retrieve Matter 1 | . . . . 1 . Scanalyzer 6 | . . . 6 . . Insert Component 3 | . . . 3 . . Analyze 3 | . . . 3 . . Garrison Access Hacks 1 | . . . . . 1 Unlock Access 1 | . . . . . 1 Unauthorized Hacks . | . . . . . . Terminals . | . . . . . . Fabricators . | . . . . . . Repair Stations . | . . . . . . Recycling Units . | . . . . . . Scanalyzers . | . . . . . . Garrison Access . | . . . . . . Data Cores Recovered . | . . . . . . Used . | . . . . . . Hacking Detections 4 | . . . 2 . 2 Full Trace Events . | . . . . . . Feedback Events . | . . . . . . Feedback Blocked . | . . . . . . Robot Schematics Acquired . | . . . . . . Robots Built . | . . . . . . Authchips . | . . . . . . Time . | . . . . . . Total Robot Build Rating . | . . . . . . Part Schematics Acquired 3 | . . . 3 . . Parts Built . | . . . . . . Authchips . | . . . . . . Time . | . . . . . . Total Part Build Rating . | . . . . . . Parts Repaired . | . . . . . . Time . | . . . . . . Parts Recycled . | . . . . . . Recycled Matter . | . . . . . . Retrieved Matter . | . . . . . . Retrieved Components . | . . . . . . Parts Scanalyzed 3 | . . . 3 . . Part Schematics Acquired 3 | . . . 3 . . Parts Damaged . | . . . . . . Bothacking | -11 -10 -10 -9 -8 -7 ------------ Run | Scr Mat Min Mat Mat Fac Used RIF Installer . | . . . . . . Robots Hacked 1 | . . . . . 1 Non-combat . | . . . . . . Combat 1 | . . . . . 1 Robot Hacks Applied 1 | . . . . . 1 parse_system 1 | . . . . . 1 Relay Couplers Released . | . . . . . . Fabnet Peak Effective % . | . . . . . . Robots Rewired . | . . . . . . Allies Hacked . | . . . . . . Hacks Repelled . | . . . . . . Allies | -11 -10 -10 -9 -8 -7 -------- Run | Scr Mat Min Mat Mat Fac Total Allies . | . . . . . . Largest Group . | . . . . . . Highest-Rated Group . | . . . . . . Highest-Rated Ally . | . . . . . . Total Orders . | . . . . . . Ally Attacks . | . . . . . . Total Damage . | . . . . . . Kills . | . . . . . . Allies Corrupted . | . . . . . . Allies Melted . | . . . . . . Intel | -11 -10 -10 -9 -8 -7 ------- Run | Scr Mat Min Mat Mat Fac Robot Analysis Total . | . . . . . . Derelict Logs Recovered 1 | . . 1 . . . Drone Launches . | . . . . . . Drone Recoveries . | . . . . . . Exploration | -11 -10 -10 -9 -8 -7 ------------- Run | Scr Mat Min Mat Mat Fac Turns Passed 2428 | 65 102 443 275 228 1315 Spaces Moved 1806 | 49 79 313 164 221 980 Core 486 | 6 . 3 . 205 272 Treads 518 | . . . . . 518 Legs 611 | 43 79 310 164 15 . Wheels 6 | . . . . . 6 Hover . | . . . . . . Flight 185 | . . . . 1 184 Fastest Speed 32 | 50 120 120 120 50 32 Average Speed 118 | 111 120 129 138 88 117 Slowest Speed 250 | 120 120 250 190 150 200 Overloaded Moves . | . . . . . . Propulsion Burnouts . | . . . . . . Robots Hopped . | . . . . . . Cave-ins Triggered . | . . . . . . Exploration Rate (%) 26 | 3 16 56 26 28 29 Regions Visited 5 Branch Regions 1 Pre-discovered Areas . | . . . . . . Known Exits Taken . | . . . . . . Unknown Exits Taken 5 | 1 1 1 1 1 . Scrap Searched . | . . . . . . Spaces Dug 16 | . . . 16 . . Terrain Destroyed 269 | . . 58 171 . 40 Melee . | . . . . . . Projectile . | . . . . . . AOE 269 | . . 58 171 . 40 Terrain Rammed . | . . . . . . Walls Destroyed . | . . . . . . Machines Disabled . | . . . . . . Actions | -11 -10 -10 -9 -8 -7 --------- Run | Scr Mat Min Mat Mat Fac Total 1991 | 57 81 339 188 247 1079 Wait 13 | . . 4 . 3 6 Move 1801 | 48 78 312 163 220 980 Hop . | . . . . . . Pick Up 25 | 3 . 10 2 6 4 Fast Attach 27 | 4 1 . 1 3 18 Attach 24 | 2 . 2 6 3 11 Detach 12 | . . 1 2 1 8 Swap . | . . . . . . Drop 11 | . . 2 . 3 6 Fire 72 | . 2 8 14 6 42 Melee 4 | . . . . . 4 Ram 2 | . . . . 2 . Kick . | . . . . . . Crush . | . . . . . . Escape Stasis . | . . . . . . Rewire . | . . . . . . Trap . | . . . . . . Miscellaneous . | . . . . . . Route ------- -11/Scrapyard -10/Materials -10/Mines -9/Materials -8/Materials -7/Factory (discovered 1 exit: Gar) History --------- Turn | Location | Event 4 | -11/Scrapyard | Discovered new exit (range 16) 66 | -11/Scrapyard | Entered Materials 66 | -10/Materials | Discovered new exit (range 14) 168 | -10/Materials | Entered Mines 205 | -10/Mines | Received a Rocket Launcher from a helpful Derelict 308 | -10/Mines | Build established: Mutant 402 | -10/Mines | Learned Materials trap positions 436 | -10/Mines | Met a Derelict shopkeep closing up shop 548 | -10/Mines | Core integrity fell below 50% 588 | -10/Mines | Discovered new exit (range 12) 611 | -10/Mines | Entered Materials 611 | -9/Materials | Evolved 2 slots: Propulsion x2 612 | -9/Materials | Loaded intel: 22 trap records 772 | -9/Materials | Lost 3 parts (1p2n) 883 | -9/Materials | Discovered new exit (range 4) 886 | -9/Materials | Entered another Materials area 886 | -8/Materials | Evolved 2 slots: Utility x2 893 | -8/Materials | Lost 4 parts (1p1n2w) 1091 | -8/Materials | Discovered new exit (range 13) 1106 | -8/Materials | Lost 4 parts (1p2n1w) 1114 | -8/Materials | Entered Factory 1114 | -7/Factory | Evolved 2 slots: Power x1, Utility x1 1145 | -7/Factory | Identified exit to Garrison 2084 | -7/Factory | Lost 3 parts (1p1n1w) 2210 | -7/Factory | Lost 6 parts (2p3n1u) 2374 | -7/Factory | Core integrity fell below 50% 2414 | -7/Factory | Core integrity fell below 20% 2416 | -7/Factory | System corruption reached 10% 2429 | -7/Factory | Destroyed by P-60 Hacker with Shock Rifle Last Messages --------------- 02373_ Adv. ECM Suite destroyed. 02378_ Adv. Weight Redist. System destroyed. 02394_ Sml. Storage Unit destroyed. 02401_ System corrupted: Matter fused (-10). 02404_ Sneak attack on T-07 Excavator. 02404_ T-07 Excavator suffers critical hit (Smash). 02404_ T-07 Excavator destroyed. 02407_ Acquired Unknown Wheel. 02407_ Identified Wheel. 02409_ Acquired 9 matter. 02411_ Acquired Mining Laser. 02413_ Mining Laser destroyed. 02415_ Wheel destroyed. 02415_ P-60 Hacker suffers critical hit (Smash). 02415_ Destroyed Imp. Heat Sink. 02415_ P-60 Hacker system corrupted by crushing effect. 02416_ Weight Redist. System destroyed. 02419_ P-60 Hacker misfires. 02423_ Hvy. Hammer destroyed. 02425_ System corrupted: Component data lost. Map ----- +----------------------------------------------------+ | ?????????????????????????????????????????????????? | | ?????????????????????????????????????????????????? | | ?????????????????????????????????????????????????? | | ?????????????????????????????????????????????????? | | ?????????????????????????????????????????????????? | | ?????????????????????????????????????????????????? | | ?????????????????????????????????????????????????? | | ?????????????????????????????????????????????????? | | ?????????????????????????????????????????????????? | | ?????????????????????????????????????????????????? | | ?????????????????????????????????????????????????? | | ?????????????????????????????????????????????????? | | ?????????????????????????????????????????????????? | | ???????????????????????#########+##??????????????? | | ???????????????????????# ????????????? | | ???????????????????????# ????????????? | | ???????????????????????# ???????????? | | ???????????????????????+ ?? ??????? | | ???????????????????????# u ??????? | | ???????????????????????# ??????? | | ???????????????????????# ??????? | | ???????????????????????# ??????? | | ??#######??????????????# ??????? | | ??# ######?????????# ?????# | | ??# ########### k #????# | | ??# p @ #????## | | ??# ##############+######???# #?????? | | ??# ##+#+####????????????????????# #?????? | | ??## ## #????????????????????# #?????? | | ???# ## "" #????????????????????# ####### | | ??# ## """#????????????????????# # | | ""?# ## S"#????????????????????# / | | """# ## #????????????????????# # | | """# ## """ #????????????????????# # | | """# ## """"" #????????????????????# # | | """# ## """"" #????????????????????# ####### | | """# ## ###############??????# #?????? | | # ## ??## #??????# #?????? | | # ## ????# = ! #??????# #?????? | | ! # ######????# #??????# #?????? | | + ########### """ #??????# #?????? | | +### ## """" !# """ ######## ####### | | ### ## """" # """ # | | ## | # """" # "" # | | ## # """" ! # """ """ # | | + # """ T" + ####### | | ### # # """ """ # #?????? | | ??# # # "" # #######?????? | | ??### ### [# # #???????????? | | ????# #?# ####+######### #???????????? | +----------------------------------------------------+ Best States ------------- Heat Dissipation 34 Energy Generation 27 Energy Capacity 490 Matter Stores 280 Matter Capacity 300 Sight Range 16 Terrain Scan Range 14 Terrain Scan Density 10 ECM Strength 2 Additional Mass Support 9 Armor Coverage 225 Resistance: KI 20 Evasion (%) 63 Recoil Reduction 4 Item Schematics ----------------- Terrain Scanner | -9/Materials | Scanalyzed Adv. Targeting Computer | -9/Materials | Scanalyzed System Shield | -9/Materials | Scanalyzed Robot Schematics ------------------ None Fabricated ------------ Nothing Alien Tech Used ----------------- None Achievements -------------- None Challenges ------------ None Game ------ Seed QuantumSignalTreads Manual? 0 Play Time 00:50:12 Cumulative 18.2 hours Start 2022.05.16 @ 21:50:13 End 2022.05.16 @ 22:43:36 Sessions 1 Manual Loads 0 Difficulty Rogue Special Mode None Game No. 23 Rogue 23 Adventurer 0 Explorer 0 Win Type - Total 0 Types 0/0/0/0/0/0/0/0/0 Lore% 9 Gallery% 18 Achievement% 12 Wizard Run 0 Options --------- ASCII 0 Keyboard 1 Movement Vi Keybinds 0 Fullscreen 2 Font 18/SmallcapsGlow Map View 76x50 Tactical HUD 1 Map Filters NONE Filters NONE Steam 1 RUN: 1b7c36e5-8d25-4e31-b876-b694be81b02e